[Event "Titled Tuesday Blitz November 29 Late 2022"]
[White "Floresvillar Gonzalez, Luis Migu"]
[Black "Joubert, Dantelle"]
[WhiteFideId "5100542"]
[BlackFideId "14310813"]
[WhiteElo "2040"]
[BlackElo "1507"]
[Result "1/2-1/2"]
[Round "11"]
[TimeControl "180+1"]
[Date "2022.11.30"]
[WhiteClock "0:00:12"]
[BlackClock "0:00:18"]

1. e4 {[%clk 0:02:59]}  e5 {[%clk 0:02:59]} 2. f4 {[%clk 0:02:57]}  exf4 {[%clk 0:02:56]} 3. Nf3 {[%clk 0:02:56]}  d5 {[%clk 0:02:55]} 4. exd5 {[%clk 0:02:50]}  Nf6 {[%clk 0:02:54]} 5. d4 {[%clk 0:02:49]}  Bd6 {[%clk 0:02:54]} 6. c4 {[%clk 0:02:48]}  b6 {[%clk 0:02:52]} 7. Be2 {[%clk 0:02:43]}  O-O {[%clk 0:02:50]} 8. O-O {[%clk 0:02:43]}  Bg4 {[%clk 0:02:48]} 9. Ne5 {[%clk 0:02:42]}  Bxe2 {[%clk 0:02:41]} 10. Qxe2 {[%clk 0:02:42]}  Re8 {[%clk 0:02:17]} 11. Bxf4 {[%clk 0:02:39]}  c6 {[%clk 0:02:17]} 12. dxc6 {[%clk 0:02:31]}  Bxe5 {[%clk 0:02:11]} 13. dxe5 {[%clk 0:02:17]}  Nxc6 {[%clk 0:02:07]} 14. Nc3 {[%clk 0:02:12]}  Qd4+ {[%clk 0:02:00]} 15. Qf2 {[%clk 0:01:50]}  Qxf2+ {[%clk 0:01:49]} 16. Rxf2 {[%clk 0:01:50]}  Nxe5 {[%clk 0:01:50]} 17. Bxe5 {[%clk 0:01:35]}  Rxe5 {[%clk 0:01:49]} 18. Rd1 {[%clk 0:01:31]}  Kf8 {[%clk 0:01:41]} 19. h3 {[%clk 0:01:30]}  Rc8 {[%clk 0:01:40]} 20. b3 {[%clk 0:01:29]}  Re3 {[%clk 0:01:28]} 21. Nd5 {[%clk 0:01:27]}  Nxd5 {[%clk 0:01:28]} 22. Rxd5 {[%clk 0:01:27]}  Rc7 {[%clk 0:01:22]} 23. Rd8+ {[%clk 0:01:24]}  Ke7 {[%clk 0:01:21]} 24. Rh8 {[%clk 0:01:23]}  h6 {[%clk 0:01:14]} 25. Rg8 {[%clk 0:01:19]}  Rg3 {[%clk 0:01:13]} 26. Kh2 {[%clk 0:01:17]}  Rg5 {[%clk 0:01:08]} 27. g4 {[%clk 0:01:13]}  f6 {[%clk 0:01:03]} 28. Rf5 {[%clk 0:01:06]}  Rxf5 {[%clk 0:01:01]} 29. Rxg7+ {[%clk 0:00:56]}  Kd6 {[%clk 0:00:53]} 30. Rxc7 {[%clk 0:00:55]}  Rf2+ {[%clk 0:00:53]} 31. Kg3 {[%clk 0:00:55]}  Rxa2 {[%clk 0:00:51]} 32. Rh7 {[%clk 0:00:53]}  Ra3 {[%clk 0:00:48]} 33. Rxh6 {[%clk 0:00:52]}  Rxb3+ {[%clk 0:00:48]} 34. Kf4 {[%clk 0:00:50]}  Ke6 {[%clk 0:00:48]} 35. g5 {[%clk 0:00:48]}  Rc3 {[%clk 0:00:35]} 36. Rxf6+ {[%clk 0:00:45]}  Kd7 {[%clk 0:00:28]} 37. h4 {[%clk 0:00:44]}  Rxc4+ {[%clk 0:00:28]} 38. Kg3 {[%clk 0:00:44]}  b5 {[%clk 0:00:25]} 39. Ra6 {[%clk 0:00:41]}  Rc7 {[%clk 0:00:22]} 40. h5 {[%clk 0:00:39]}  Ke8 {[%clk 0:00:22]} 41. h6 {[%clk 0:00:38]}  Kf8 {[%clk 0:00:21]} 42. g6 {[%clk 0:00:36]}  Kg8 {[%clk 0:00:21]} 43. Kf4 {[%clk 0:00:34]}  b4 {[%clk 0:00:21]} 44. Rd6 {[%clk 0:00:16]}  Rc8 {[%clk 0:00:18]} 45. Rd7 {[%clk 0:00:16]}  Rb8 {[%clk 0:00:17]} 46. Rxa7 {[%clk 0:00:16]}  b3 {[%clk 0:00:16]} 47. Ra1 {[%clk 0:00:15]}  b2 {[%clk 0:00:17]} 48. Rb1 {[%clk 0:00:15]}  Rb6 {[%clk 0:00:17]} 49. Kf5 {[%clk 0:00:15]}  Rb5+ {[%clk 0:00:17]} 50. Kf6 {[%clk 0:00:15]}  Rb6+ {[%clk 0:00:17]} 51. Kg5 {[%clk 0:00:15]}  Rb5+ {[%clk 0:00:17]} 52. Kf6 {[%clk 0:00:13]}  Rb6+ {[%clk 0:00:17]} 53. Kf5 {[%clk 0:00:13]}  Rb5+ {[%clk 0:00:18]} 54. Kg4 {[%clk 0:00:13]}  Rb4+ {[%clk 0:00:17]} 55. Kh5 {[%clk 0:00:12]}  Rb5+ {[%clk 0:00:18]} 56. Kg4 {[%clk 0:00:12]}  Rb4+ {[%clk 0:00:17]} 57. Kf5 {[%clk 0:00:12]}  Rb5+ {[%clk 0:00:18]} 1/2-1/2


[Site "https://www.chess.com"]

[Event "Titled Tuesday Blitz November 29 Late 2022"]
[White "Hambleton, Aman"]
[Black "Rodriguez Fontecha, Marcos"]
[WhiteFideId "2606577"]
[BlackFideId "2256576"]
[WhiteElo "2538"]
[BlackElo "2263"]
[Result "1-0"]
[Round "11"]
[TimeControl "180+1"]
[Date "2022.11.30"]
[WhiteClock "0:00:07"]
[BlackClock "0:00:51"]

1. d4 {[%clk 0:03:00]}  d5 {[%clk 0:02:59]} 2. Bf4 {[%clk 0:03:00]}  Nf6 {[%clk 0:02:58]} 3. e3 {[%clk 0:02:58]}  c5 {[%clk 0:02:57]} 4. c3 {[%clk 0:02:58]}  Nc6 {[%clk 0:02:58]} 5. Nd2 {[%clk 0:02:59]}  Qb6 {[%clk 0:02:58]} 6. Qb3 {[%clk 0:02:59]}  c4 {[%clk 0:02:57]} 7. Qc2 {[%clk 0:02:59]}  g6 {[%clk 0:02:56]} 8. e4 {[%clk 0:02:59]}  dxe4 {[%clk 0:02:54]} 9. Nxc4 {[%clk 0:02:36]}  Qd8 {[%clk 0:02:54]} 10. Ne2 {[%clk 0:02:36]}  Bg7 {[%clk 0:02:52]} 11. Ng3 {[%clk 0:02:36]}  Nd5 {[%clk 0:02:35]} 12. Qxe4 {[%clk 0:02:24]}  Nxf4 {[%clk 0:02:35]} 13. Qxf4 {[%clk 0:02:24]}  O-O {[%clk 0:02:35]} 14. Be2 {[%clk 0:02:03]}  b5 {[%clk 0:02:30]} 15. Ne3 {[%clk 0:01:38]}  e5 {[%clk 0:02:29]} 16. dxe5 {[%clk 0:01:39]}  Bxe5 {[%clk 0:02:27]} 17. Qe4 {[%clk 0:01:26]}  Bb7 {[%clk 0:02:27]} 18. O-O {[%clk 0:01:08]}  Re8 {[%clk 0:02:20]} 19. Rad1 {[%clk 0:00:59]}  Qc8 {[%clk 0:02:03]} 20. Bg4 {[%clk 0:00:53]}  f5 {[%clk 0:01:40]} 21. Nexf5 {[%clk 0:00:52]}  gxf5 {[%clk 0:01:40]} 22. Bxf5 {[%clk 0:00:52]}  Qb8 {[%clk 0:01:26]} 23. Rd7 {[%clk 0:00:38]}  Bg7 {[%clk 0:01:08]} 24. Qd5+ {[%clk 0:00:09]}  Kh8 {[%clk 0:01:04]} 25. Qf7 {[%clk 0:00:09]}  Qe5 {[%clk 0:00:58]} 26. Rxb7 {[%clk 0:00:07]}  Rf8 {[%clk 0:00:53]} 27. Qh5 {[%clk 0:00:07]}  h6 {[%clk 0:00:51]} 28. Qg6 {[%clk 0:00:07]} 1-0


[Site "https://www.chess.com"]

[Event "Titled Tuesday Blitz November 29 Late 2022"]
[White "Han, Yichen"]
[Black "Chlpik, Martin"]
[WhiteFideId "1054430"]
[BlackFideId "14923351"]
[WhiteElo "2323"]
[BlackElo "2109"]
[Result "1-0"]
[Round "11"]
[TimeControl "180+1"]
[Date "2022.11.30"]
[WhiteClock "0:00:14"]
[BlackClock "0:00:02"]

1. d4 {[%clk 0:03:00]}  Nf6 {[%clk 0:02:56]} 2. c4 {[%clk 0:02:53]}  c5 {[%clk 0:02:56]} 3. d5 {[%clk 0:02:53]}  e6 {[%clk 0:02:57]} 4. Nc3 {[%clk 0:02:53]}  exd5 {[%clk 0:02:57]} 5. cxd5 {[%clk 0:02:54]}  d6 {[%clk 0:02:58]} 6. Nf3 {[%clk 0:02:53]}  g6 {[%clk 0:02:58]} 7. Nd2 {[%clk 0:02:53]}  Nbd7 {[%clk 0:02:56]} 8. Nc4 {[%clk 0:02:50]}  Nb6 {[%clk 0:02:56]} 9. e4 {[%clk 0:02:48]}  Nxc4 {[%clk 0:02:54]} 10. Bxc4 {[%clk 0:02:49]}  Bg7 {[%clk 0:02:54]} 11. O-O {[%clk 0:02:48]}  O-O {[%clk 0:02:54]} 12. h3 {[%clk 0:02:45]}  Re8 {[%clk 0:02:55]} 13. Re1 {[%clk 0:02:43]}  a6 {[%clk 0:02:54]} 14. a4 {[%clk 0:02:41]}  Rb8 {[%clk 0:02:53]} 15. a5 {[%clk 0:02:40]}  b5 {[%clk 0:02:47]} 16. axb6 {[%clk 0:02:39]}  Rxb6 {[%clk 0:02:44]} 17. Bf1 {[%clk 0:02:28]}  Rb4 {[%clk 0:02:40]} 18. Qc2 {[%clk 0:02:24]}  Qb6 {[%clk 0:02:07]} 19. Ra4 {[%clk 0:02:19]}  Bd7 {[%clk 0:02:03]} 20. Rxa6 {[%clk 0:02:12]}  Qb8 {[%clk 0:02:02]} 21. Ra2 {[%clk 0:01:52]}  Nh5 {[%clk 0:01:56]} 22. Be2 {[%clk 0:01:47]}  f5 {[%clk 0:01:49]} 23. Bxh5 {[%clk 0:01:44]}  gxh5 {[%clk 0:01:50]} 24. Bd2 {[%clk 0:01:41]}  Bxc3 {[%clk 0:01:41]} 25. Bxc3 {[%clk 0:01:38]}  Rbxe4 {[%clk 0:01:42]} 26. Rxe4 {[%clk 0:01:34]}  Rxe4 {[%clk 0:01:40]} 27. Qd2 {[%clk 0:01:33]}  f4 {[%clk 0:01:20]} 28. Qd1 {[%clk 0:01:18]}  Qe8 {[%clk 0:01:19]} 29. Qa1 {[%clk 0:01:12]}  Qg6 {[%clk 0:01:18]} 30. Ra8+ {[%clk 0:01:09]}  Be8 {[%clk 0:01:16]} 31. Ra7 {[%clk 0:01:04]}  Bf7 {[%clk 0:01:14]} 32. Qd1 {[%clk 0:00:55]}  h4 {[%clk 0:00:41]} 33. Qf3 {[%clk 0:00:53]}  Bxd5 {[%clk 0:00:26]} 34. Kh2 {[%clk 0:00:33]}  Re5 {[%clk 0:00:22]} 35. Qg4 {[%clk 0:00:23]}  Qxg4 {[%clk 0:00:18]} 36. hxg4 {[%clk 0:00:24]}  Rg5 {[%clk 0:00:09]} 37. f3 {[%clk 0:00:24]}  Be6 {[%clk 0:00:07]} 38. Ra6 {[%clk 0:00:18]}  Rd5 {[%clk 0:00:04]} 39. Ra8+ {[%clk 0:00:19]}  Kf7 {[%clk 0:00:04]} 40. Ra7+ {[%clk 0:00:19]}  Kg6 {[%clk 0:00:03]} 41. Rg7+ {[%clk 0:00:19]}  Kh6 {[%clk 0:00:02]} 42. Re7 {[%clk 0:00:14]} 1-0


[Site "https://www.chess.com"]

[Event "Titled Tuesday Blitz November 29 Late 2022"]
[White "Hjartarson, Johann"]
[Black "Al-Tarboush, Ward"]
[WhiteFideId "2300044"]
[BlackFideId "7601450"]
[WhiteElo "2458"]
[BlackElo "2273"]
[Result "0-1"]
[Round "11"]
[TimeControl "180+1"]
[Date "2022.11.30"]
[WhiteClock "0:00:04"]
[BlackClock "0:00:03"]

1. e4 {[%clk 0:03:00]}  b6 {[%clk 0:02:46]} 2. d4 {[%clk 0:02:57]}  Bb7 {[%clk 0:02:46]} 3. Bd3 {[%clk 0:02:56]}  e6 {[%clk 0:02:46]} 4. Ne2 {[%clk 0:02:52]}  c5 {[%clk 0:02:36]} 5. O-O {[%clk 0:02:47]}  cxd4 {[%clk 0:02:32]} 6. Nxd4 {[%clk 0:02:46]}  Bc5 {[%clk 0:02:32]} 7. Be3 {[%clk 0:02:37]}  Ne7 {[%clk 0:02:30]} 8. Nd2 {[%clk 0:02:31]}  O-O {[%clk 0:02:29]} 9. c3 {[%clk 0:02:23]}  Nbc6 {[%clk 0:02:27]} 10. N2b3 {[%clk 0:02:17]}  Bd6 {[%clk 0:02:25]} 11. f4 {[%clk 0:02:11]}  f5 {[%clk 0:02:10]} 12. e5 {[%clk 0:02:06]}  Bc7 {[%clk 0:02:08]} 13. Qe2 {[%clk 0:02:04]}  Nd5 {[%clk 0:02:07]} 14. Bd2 {[%clk 0:02:01]}  Kh8 {[%clk 0:02:03]} 15. Rad1 {[%clk 0:01:42]}  Qh4 {[%clk 0:02:02]} 16. g3 {[%clk 0:01:35]}  Qh3 {[%clk 0:02:00]} 17. Nb5 {[%clk 0:01:30]}  Bb8 {[%clk 0:01:56]} 18. Nd6 {[%clk 0:01:19]}  Bxd6 {[%clk 0:01:56]} 19. exd6 {[%clk 0:01:18]}  Nf6 {[%clk 0:01:48]} 20. Be3 {[%clk 0:00:53]}  Ng4 {[%clk 0:01:46]} 21. Bc1 {[%clk 0:00:46]}  Rae8 {[%clk 0:01:38]} 22. Rfe1 {[%clk 0:00:38]}  e5 {[%clk 0:01:33]} 23. Qc2 {[%clk 0:00:37]}  exf4 {[%clk 0:01:13]} 24. Bf1 {[%clk 0:00:37]}  Qh5 {[%clk 0:01:08]} 25. gxf4 {[%clk 0:00:26]}  Rxe1 {[%clk 0:01:01]} 26. Rxe1 {[%clk 0:00:25]}  Qg6 {[%clk 0:01:02]} 27. Bg2 {[%clk 0:00:25]}  Qxd6 {[%clk 0:01:01]} 28. h3 {[%clk 0:00:20]}  Nh6 {[%clk 0:00:57]} 29. Rd1 {[%clk 0:00:20]}  Qe6 {[%clk 0:00:48]} 30. Qd3 {[%clk 0:00:20]}  Rd8 {[%clk 0:00:36]} 31. Be3 {[%clk 0:00:19]}  Ng8 {[%clk 0:00:33]} 32. Bf2 {[%clk 0:00:19]}  Nf6 {[%clk 0:00:33]} 33. Bh4 {[%clk 0:00:18]}  Na5 {[%clk 0:00:26]} 34. Re1 {[%clk 0:00:17]}  Be4 {[%clk 0:00:15]} 35. Qd4 {[%clk 0:00:14]}  Nc6 {[%clk 0:00:13]} 36. Qd2 {[%clk 0:00:12]}  d5 {[%clk 0:00:11]} 37. Nd4 {[%clk 0:00:11]}  Nxd4 {[%clk 0:00:10]} 38. Qxd4 {[%clk 0:00:11]}  Rf8 {[%clk 0:00:09]} 39. Qe5 {[%clk 0:00:11]}  Qc6 {[%clk 0:00:07]} 40. Bxf6 {[%clk 0:00:08]}  gxf6 {[%clk 0:00:08]} 41. Qe7 {[%clk 0:00:04]}  Rg8 {[%clk 0:00:09]} 42. Re2 {[%clk 0:00:04]}  d4 {[%clk 0:00:03]} 0-1


[Site "https://www.chess.com"]

[Event "Titled Tuesday Blitz November 29 Late 2022"]
[White "Jaracz, Pawel"]
[Black "Olafsson, Helgi"]
[WhiteFideId "1102222"]
[BlackFideId "2300010"]
[WhiteElo "2459"]
[BlackElo "2463"]
[Result "1-0"]
[Round "11"]
[TimeControl "180+1"]
[Date "2022.11.30"]
[WhiteClock "0:01:01"]
[BlackClock "0:00:38"]

1. e4 {[%clk 0:03:00]}  c5 {[%clk 0:02:59]} 2. Nf3 {[%clk 0:02:59]}  e6 {[%clk 0:02:59]} 3. d4 {[%clk 0:02:58]}  cxd4 {[%clk 0:02:59]} 4. Nxd4 {[%clk 0:02:59]}  a6 {[%clk 0:03:00]} 5. c4 {[%clk 0:02:57]}  Nf6 {[%clk 0:02:59]} 6. Nc3 {[%clk 0:02:57]}  Bb4 {[%clk 0:02:59]} 7. Qf3 {[%clk 0:02:55]}  d6 {[%clk 0:02:47]} 8. Bd2 {[%clk 0:02:49]}  Nbd7 {[%clk 0:02:46]} 9. Qe2 {[%clk 0:02:09]}  O-O {[%clk 0:02:39]} 10. O-O-O {[%clk 0:02:07]}  Qc7 {[%clk 0:02:33]} 11. Kb1 {[%clk 0:01:55]}  Ne5 {[%clk 0:02:11]} 12. f4 {[%clk 0:01:50]}  Nc6 {[%clk 0:02:08]} 13. Nc2 {[%clk 0:01:49]}  Bxc3 {[%clk 0:01:57]} 14. Bxc3 {[%clk 0:01:49]}  e5 {[%clk 0:01:57]} 15. f5 {[%clk 0:01:48]}  b5 {[%clk 0:01:55]} 16. g4 {[%clk 0:01:41]}  Bb7 {[%clk 0:01:49]} 17. Bg2 {[%clk 0:01:31]}  bxc4 {[%clk 0:01:29]} 18. g5 {[%clk 0:01:28]}  Nd7 {[%clk 0:01:29]} 19. f6 {[%clk 0:01:16]}  g6 {[%clk 0:01:20]} 20. h4 {[%clk 0:01:16]}  Nc5 {[%clk 0:01:20]} 21. h5 {[%clk 0:01:15]}  Ne6 {[%clk 0:01:20]} 22. hxg6 {[%clk 0:01:14]}  fxg6 {[%clk 0:01:19]} 23. Qxc4 {[%clk 0:01:13]}  Rae8 {[%clk 0:01:11]} 24. Bh3 {[%clk 0:01:04]}  Bc8 {[%clk 0:01:11]} 25. Ne3 {[%clk 0:01:02]}  Nd4 {[%clk 0:00:43]} 26. Rxd4 {[%clk 0:01:01]}  exd4 {[%clk 0:00:38]} 27. Bxe6+ {[%clk 0:01:01]} 1-0


[Site "https://www.chess.com"]

[Event "Titled Tuesday Blitz November 29 Late 2022"]
[White "Kim, Sergey"]
[Black "Iinuma, Paul Y"]
[WhiteFideId "13700570"]
[BlackFideId "2031809"]
[WhiteElo "2593"]
[BlackElo "2066"]
[Result "1-0"]
[Round "11"]
[TimeControl "180+1"]
[Date "2022.11.30"]
[WhiteClock "0:00:29"]
[BlackClock "0:00:05"]

1. d4 {[%clk 0:03:00]}  Nf6 {[%clk 0:02:59]} 2. c4 {[%clk 0:03:00]}  g6 {[%clk 0:02:59]} 3. Nc3 {[%clk 0:03:01]}  Bg7 {[%clk 0:03:00]} 4. e4 {[%clk 0:03:02]}  d6 {[%clk 0:03:01]} 5. Nge2 {[%clk 0:03:02]}  O-O {[%clk 0:03:01]} 6. Ng3 {[%clk 0:03:03]}  e5 {[%clk 0:03:01]} 7. d5 {[%clk 0:03:03]}  a5 {[%clk 0:03:00]} 8. Be2 {[%clk 0:03:03]}  Na6 {[%clk 0:02:58]} 9. O-O {[%clk 0:03:03]}  Nc5 {[%clk 0:02:58]} 10. Be3 {[%clk 0:03:03]}  Ne8 {[%clk 0:02:58]} 11. Qd2 {[%clk 0:03:03]}  f5 {[%clk 0:02:57]} 12. f4 {[%clk 0:03:02]}  g5 {[%clk 0:02:48]} 13. Nxf5 {[%clk 0:02:59]}  Bxf5 {[%clk 0:02:44]} 14. exf5 {[%clk 0:02:57]}  exf4 {[%clk 0:02:33]} 15. Bxc5 {[%clk 0:02:44]}  dxc5 {[%clk 0:02:34]} 16. g4 {[%clk 0:02:44]}  fxg3 {[%clk 0:02:24]} 17. hxg3 {[%clk 0:02:43]}  Nd6 {[%clk 0:02:24]} 18. Bd3 {[%clk 0:02:41]}  Be5 {[%clk 0:02:16]} 19. Kg2 {[%clk 0:02:38]}  Qf6 {[%clk 0:02:16]} 20. Rae1 {[%clk 0:02:30]}  Rae8 {[%clk 0:02:12]} 21. Ne4 {[%clk 0:02:01]}  Nxe4 {[%clk 0:02:12]} 22. Rxe4 {[%clk 0:02:01]}  Bxb2 {[%clk 0:02:06]} 23. Re6 {[%clk 0:02:01]}  Qg7 {[%clk 0:01:58]} 24. Qe2 {[%clk 0:01:48]}  Rd8 {[%clk 0:01:43]} 25. Re7 {[%clk 0:01:38]}  Qf6 {[%clk 0:01:33]} 26. Re6 {[%clk 0:01:32]}  Qf7 {[%clk 0:01:19]} 27. f6 {[%clk 0:01:31]}  Bd4 {[%clk 0:01:04]} 28. Rh1 {[%clk 0:01:25]}  Rd7 {[%clk 0:00:34]} 29. Rxh7 {[%clk 0:01:21]}  Qxh7 {[%clk 0:00:34]} 30. Bxh7+ {[%clk 0:01:20]}  Rxh7 {[%clk 0:00:35]} 31. Qe4 {[%clk 0:01:07]}  Rh6 {[%clk 0:00:32]} 32. f7+ {[%clk 0:01:04]}  Kg7 {[%clk 0:00:32]} 33. Rxh6 {[%clk 0:01:03]}  Kxh6 {[%clk 0:00:33]} 34. Qf5 {[%clk 0:01:00]}  b6 {[%clk 0:00:20]} 35. a4 {[%clk 0:00:59]}  Kg7 {[%clk 0:00:18]} 36. Qxg5+ {[%clk 0:00:58]}  Kxf7 {[%clk 0:00:18]} 37. Qf4+ {[%clk 0:00:58]}  Kg6 {[%clk 0:00:16]} 38. Qxc7 {[%clk 0:00:58]}  Rf2+ {[%clk 0:00:16]} 39. Kh3 {[%clk 0:00:57]}  Rf6 {[%clk 0:00:12]} 40. Kg4 {[%clk 0:00:54]}  Kh6 {[%clk 0:00:10]} 41. Qe7 {[%clk 0:00:48]}  Rg6+ {[%clk 0:00:10]} 42. Kh3 {[%clk 0:00:46]}  Bf6 {[%clk 0:00:10]} 43. Qe8 {[%clk 0:00:41]}  Bg7 {[%clk 0:00:10]} 44. Qe3+ {[%clk 0:00:37]}  Kh7 {[%clk 0:00:08]} 45. Qe4 {[%clk 0:00:38]}  Bd4 {[%clk 0:00:06]} 46. d6 {[%clk 0:00:37]}  Bf6 {[%clk 0:00:05]} 47. d7 {[%clk 0:00:36]}  Kg7 {[%clk 0:00:05]} 48. Qe6 {[%clk 0:00:33]}  Rh6+ {[%clk 0:00:05]} 49. Kg2 {[%clk 0:00:33]}  Rh8 {[%clk 0:00:06]} 50. Qxb6 {[%clk 0:00:33]}  Bd8 {[%clk 0:00:05]} 51. Qxc5 {[%clk 0:00:32]}  Rf8 {[%clk 0:00:05]} 52. Qd4+ {[%clk 0:00:30]}  Kf7 {[%clk 0:00:05]} 53. c5 {[%clk 0:00:30]}  Ke7 {[%clk 0:00:05]} 54. Qd6+ {[%clk 0:00:30]}  Kf7 {[%clk 0:00:04]} 55. c6 {[%clk 0:00:30]}  Be7 {[%clk 0:00:04]} 56. Qd5+ {[%clk 0:00:30]}  Kf6 {[%clk 0:00:04]} 57. c7 {[%clk 0:00:30]}  Rg8 {[%clk 0:00:04]} 58. c8=Q {[%clk 0:00:30]}  Bd8 {[%clk 0:00:05]} 59. Qc3+ {[%clk 0:00:29]} 1-0


[Site "https://www.chess.com"]

[Event "Titled Tuesday Blitz November 29 Late 2022"]
[White "Kovacevic, Radmila"]
[Black "Young, Ryan"]
[WhiteFideId "933171"]
[BlackFideId "2049945"]
[WhiteElo "2208"]
[BlackElo "2260"]
[Result "0-1"]
[Round "11"]
[TimeControl "180+1"]
[Date "2022.11.30"]
[WhiteClock "0:00:01"]
[BlackClock "0:00:22"]

1. e4 {[%clk 0:03:00]}  c5 {[%clk 0:03:00]} 2. Be2 {[%clk 0:02:57]}  e6 {[%clk 0:02:58]} 3. f4 {[%clk 0:02:55]}  d5 {[%clk 0:02:57]} 4. d3 {[%clk 0:02:55]}  Nc6 {[%clk 0:02:57]} 5. Nf3 {[%clk 0:02:54]}  Nf6 {[%clk 0:02:55]} 6. e5 {[%clk 0:02:53]}  Nd7 {[%clk 0:02:56]} 7. O-O {[%clk 0:02:53]}  Be7 {[%clk 0:02:55]} 8. Kh1 {[%clk 0:02:51]}  f6 {[%clk 0:02:54]} 9. c4 {[%clk 0:02:51]}  dxc4 {[%clk 0:02:40]} 10. dxc4 {[%clk 0:02:44]}  fxe5 {[%clk 0:02:40]} 11. Ng5 {[%clk 0:02:42]}  Nf6 {[%clk 0:02:33]} 12. Bh5+ {[%clk 0:02:06]}  g6 {[%clk 0:02:32]} 13. Bf3 {[%clk 0:01:42]}  Qxd1 {[%clk 0:02:29]} 14. Rxd1 {[%clk 0:01:34]}  h6 {[%clk 0:01:35]} 15. Bxc6+ {[%clk 0:01:26]}  bxc6 {[%clk 0:01:36]} 16. Nf3 {[%clk 0:01:20]}  e4 {[%clk 0:01:30]} 17. Ne5 {[%clk 0:00:53]}  Rg8 {[%clk 0:01:15]} 18. Nc3 {[%clk 0:00:46]}  Bb7 {[%clk 0:01:08]} 19. Be3 {[%clk 0:00:45]}  Rd8 {[%clk 0:01:06]} 20. Na4 {[%clk 0:00:42]}  g5 {[%clk 0:00:55]} 21. fxg5 {[%clk 0:00:32]}  hxg5 {[%clk 0:00:56]} 22. Bxc5 {[%clk 0:00:20]}  Ba8 {[%clk 0:00:33]} 23. g4 {[%clk 0:00:17]}  Bxc5 {[%clk 0:00:30]} 24. Nxc5 {[%clk 0:00:18]}  Ke7 {[%clk 0:00:31]} 25. Kg2 {[%clk 0:00:16]}  Rxd1 {[%clk 0:00:31]} 26. Rxd1 {[%clk 0:00:16]}  Rd8 {[%clk 0:00:32]} 27. Rxd8 {[%clk 0:00:16]}  Kxd8 {[%clk 0:00:33]} 28. Kf2 {[%clk 0:00:15]}  Ke7 {[%clk 0:00:33]} 29. b4 {[%clk 0:00:12]}  Ne8 {[%clk 0:00:30]} 30. Ke3 {[%clk 0:00:10]}  Nc7 {[%clk 0:00:30]} 31. Nxe4 {[%clk 0:00:08]}  Bb7 {[%clk 0:00:29]} 32. Nxg5 {[%clk 0:00:07]}  c5 {[%clk 0:00:28]} 33. b5 {[%clk 0:00:07]}  Ne8 {[%clk 0:00:26]} 34. Ne4 {[%clk 0:00:06]}  Bxe4 {[%clk 0:00:26]} 35. Kxe4 {[%clk 0:00:07]}  Nf6+ {[%clk 0:00:27]} 36. Kd3 {[%clk 0:00:06]}  Kd6 {[%clk 0:00:26]} 37. g5 {[%clk 0:00:07]}  Nh5 {[%clk 0:00:24]} 38. Nf7+ {[%clk 0:00:05]}  Ke7 {[%clk 0:00:24]} 39. Nh6 {[%clk 0:00:06]}  e5 {[%clk 0:00:21]} 40. Ke4 {[%clk 0:00:04]}  Ke6 {[%clk 0:00:22]} 41. g6 {[%clk 0:00:02]}  Nf6+ {[%clk 0:00:21]} 42. Kf3 {[%clk 0:00:02]}  Nh5 {[%clk 0:00:21]} 43. Kg4 {[%clk 0:00:02]}  Ng7 {[%clk 0:00:22]} 44. h4 {[%clk 0:00:01]}  e4 {[%clk 0:00:22]} 0-1


[Site "https://www.chess.com"]

[Event "Titled Tuesday Blitz November 29 Late 2022"]
[White "Leebit02"]
[Black "Mickiewicz, Piotr"]
[BlackFideId "1114891"]
[WhiteElo "2313"]
[BlackElo "2246"]
[Result "1-0"]
[Round "11"]
[TimeControl "180+1"]
[Date "2022.11.30"]
[WhiteClock "0:00:17"]
[BlackClock "0:00:03"]

1. e4 {[%clk 0:02:59]}  b6 {[%clk 0:02:59]} 2. d4 {[%clk 0:02:59]}  Bb7 {[%clk 0:02:59]} 3. Bd3 {[%clk 0:02:59]}  e6 {[%clk 0:02:59]} 4. Qe2 {[%clk 0:03:00]}  d6 {[%clk 0:02:57]} 5. c3 {[%clk 0:02:56]}  a6 {[%clk 0:02:56]} 6. Nf3 {[%clk 0:02:52]}  Nd7 {[%clk 0:02:54]} 7. Be3 {[%clk 0:02:45]}  g6 {[%clk 0:02:53]} 8. h4 {[%clk 0:02:44]}  h6 {[%clk 0:02:52]} 9. Nbd2 {[%clk 0:02:43]}  Ne7 {[%clk 0:02:51]} 10. h5 {[%clk 0:02:39]}  g5 {[%clk 0:02:50]} 11. Nh2 {[%clk 0:02:40]}  Bg7 {[%clk 0:02:44]} 12. g3 {[%clk 0:02:27]}  c5 {[%clk 0:02:32]} 13. f4 {[%clk 0:02:24]}  cxd4 {[%clk 0:02:05]} 14. cxd4 {[%clk 0:02:24]}  Nf5 {[%clk 0:01:51]} 15. Qf2 {[%clk 0:01:48]}  Nxe3 {[%clk 0:01:45]} 16. Qxe3 {[%clk 0:01:48]}  gxf4 {[%clk 0:01:44]} 17. Qxf4 {[%clk 0:01:22]}  Bxd4 {[%clk 0:01:42]} 18. Rf1 {[%clk 0:01:07]}  Ne5 {[%clk 0:01:40]} 19. Ke2 {[%clk 0:01:00]}  Qg5 {[%clk 0:01:34]} 20. Ndf3 {[%clk 0:00:34]}  Qxf4 {[%clk 0:01:00]} 21. gxf4 {[%clk 0:00:33]}  Nxd3 {[%clk 0:00:51]} 22. Kxd3 {[%clk 0:00:33]}  Bf6 {[%clk 0:00:48]} 23. Rf2 {[%clk 0:00:30]}  Ke7 {[%clk 0:00:47]} 24. Rg1 {[%clk 0:00:28]}  Rhg8 {[%clk 0:00:34]} 25. Ng4 {[%clk 0:00:27]}  Bg7 {[%clk 0:00:34]} 26. Rfg2 {[%clk 0:00:27]}  Rgc8 {[%clk 0:00:29]} 27. Ne3 {[%clk 0:00:25]}  Bf8 {[%clk 0:00:28]} 28. Nd4 {[%clk 0:00:23]}  b5 {[%clk 0:00:27]} 29. Rg8 {[%clk 0:00:22]}  Rc5 {[%clk 0:00:24]} 30. Rh8 {[%clk 0:00:22]}  Rxh5 {[%clk 0:00:22]} 31. f5 {[%clk 0:00:18]}  Rh4 {[%clk 0:00:14]} 32. Rg4 {[%clk 0:00:14]}  Rxg4 {[%clk 0:00:10]} 33. Nxg4 {[%clk 0:00:14]}  Bg7 {[%clk 0:00:10]} 34. Rh7 {[%clk 0:00:13]}  Bxd4 {[%clk 0:00:08]} 35. Kxd4 {[%clk 0:00:14]}  e5+ {[%clk 0:00:08]} 36. Ke3 {[%clk 0:00:14]}  Rg8 {[%clk 0:00:06]} 37. Nxh6 {[%clk 0:00:14]}  Rg3+ {[%clk 0:00:06]} 38. Kf2 {[%clk 0:00:14]}  Rg5 {[%clk 0:00:02]} 39. Rxf7+ {[%clk 0:00:14]}  Ke8 {[%clk 0:00:02]} 40. Rxb7 {[%clk 0:00:14]}  Rh5 {[%clk 0:00:02]} 41. Nf7 {[%clk 0:00:14]}  Rh2+ {[%clk 0:00:02]} 42. Kg3 {[%clk 0:00:14]}  Rxb2 {[%clk 0:00:03]} 43. Nxd6+ {[%clk 0:00:15]}  Kd8 {[%clk 0:00:03]} 44. f6 {[%clk 0:00:15]}  Rxa2 {[%clk 0:00:03]} 45. f7 {[%clk 0:00:15]}  Ra3+ {[%clk 0:00:04]} 46. Kg4 {[%clk 0:00:16]}  Rg3+ {[%clk 0:00:02]} 47. Kxg3 {[%clk 0:00:16]}  a5 {[%clk 0:00:03]} 48. f8=Q# {[%clk 0:00:17]} 1-0


[Site "https://www.chess.com"]